bitfinex-derivatives/quotes_SOLF0:USTF0_20250924
["timestamp","ask_amount","ask_price","bid_price","bid_amount"]
[1758701418900,1.18429228,211.15,211.07,11.47431438]
[1758701419207,1.18429228,211.15,211.07,11.802]
[1758701419599,1.18429228,211.15,211.06,3.93431438]
[1758701419799,1.18429228,211.15,211.08,7.54]
[1758701419996,1.18429228,211.15,211.09,4.2615]
[1758701420302,1.18429228,211.15,211.08,7.54]
[1758701422109,5.44489228,211.15,211.08,7.54]
[1758701422407,8.66429228,211.14,211.08,7.54]
[1758701422703,7.48,211.12,211.06,3.93431438]
[1758701422905,7.48,211.18,211.07,11.47431438]
[1758701423105,1.18430214,211.17,211.08,7.54]
[1758701423305,1.18430214,211.16,211.08,7.54]
[1758701423506,1.18430214,211.15,211.08,7.54]
[1758701423706,1.18430214,211.14,211.08,7.54]
[1758701423907,4.2607,211.15,211.08,7.54]
[1758701424106,1.18426746,211.14,211.08,7.54]
[1758701424307,1.18426746,211.13,211.08,7.54]
[1758701424509,4.2601,211.17,211.08,12.0919]
[1758701424705,1.18426746,211.16,211.08,12.0919]
[1758701424904,7.48,211.18,211.08,12.0919]
[1758701424905,1.18426746,211.15,211.08,12.0919]
[1758701425206,1.18426746,211.14,211.08,12.0919]
[1758701425410,7.48,211.18,211.09,7.83]
[1758701425608,1.18425851,211.17,211.09,7.83]
[1758701425811,5.44465851,211.16,211.09,7.83]
[1758701426010,1.18425851,211.15,211.09,7.83]
[1758701426209,1.18425851,211.14,211.08,8.19621438]
[1758701426411,4.2604,211.16,211.09,7.83]
[1758701426612,1.18425851,211.15,211.09,7.83]
[1758701426813,1.18425851,211.14,211.09,7.83]
[1758701427014,4.2604,211.16,211.09,7.83]
[1758701427215,7.48,211.18,211.09,7.83]
[1758701427216,1.18425851,211.15,211.09,7.83]
[1758701427411,5.32324,211.23,211.1,7.83]
[1758701427610,9.08420486,211.22,211.1,7.83]
[1758701427811,7.9,211.22,211.1,7.83]
[1758701428011,1.1842043,211.21,211.1,7.83]
[1758701428212,7.9,211.22,211.13,7.83]
[1758701428213,5.4437043,211.2,211.13,7.83]
[1758701428414,1.1842043,211.19,211.13,7.83]
[1758701428715,9.0842043,211.18,211.11,7.83]
[1758701428909,1.1842043,211.17,211.11,7.83]
[1758701429108,1.1842043,211.16,211.1,11.76431438]
[1758701429310,1.1842043,211.15,211.1,7.83]
[1758701429518,7.9,211.17,211.1,7.83]
[1758701429720,1.18421362,211.16,211.1,7.83]
[1758701430015,1.18421362,211.15,211.09,3.93431438]
[1758701430211,7.9,211.17,211.09,3.93431438]
[1758701430212,7.9,211.17,211.1,7.83]
[1758701430419,1.18421325,211.16,211.1,7.83]
[1758701430615,7.9,211.14,211.07,3.93431438]
[1758701430816,1.18421325,211.13,211.07,3.93431438]
[1758701431417,1.18421325,211.13,211.06,13.13339732]
[1758701431820,1.18421325,211.13,211.06,17.39559732]
[1758701432022,1.18434578,211.12,211.06,17.39559732]
[1758701432221,7.9,211.14,211.06,17.39559732]
[1758701432517,1.18434541,211.13,211.06,17.39559732]
[1758701432719,1.18434541,211.12,211.06,17.39559732]
[1758701432910,7.9,211.14,211.06,17.39559732]
[1758701433110,1.18434541,211.13,211.06,17.39559732]
[1758701433423,1.18434541,211.12,211.06,17.39559732]
[1758701433714,7.9,211.14,211.06,17.39559732]
[1758701433920,1.18434541,211.13,211.06,17.39559732]
[1758701434120,1.18434541,211.12,211.06,9.56559732]
[1758701434319,12.1607,211.14,211.07,7.83]
[1758701434521,1.18434541,211.13,211.07,7.83]
[1758701434718,1.18434541,211.12,211.06,17.39559732]
[1758701434918,12.1607,211.14,211.06,17.39559732]
[1758701435118,1.18434578,211.13,211.06,17.39559732]
[1758701435415,4.2603,211.16,211.08,1.36908294]
[1758701435621,1.18433646,211.15,211.09,7.83]
[1758701435815,1.18433646,211.14,211.08,1.36908294]
[1758701436016,1.18433646,211.13,211.08,1.36908294]
[1758701436322,4.2603,211.16,211.09,7.83]
[1758701436524,1.18432676,211.15,211.09,7.83]
[1758701436720,1.18432676,211.14,211.09,7.83]
[1758701436921,1.18432676,211.13,211.09,7.83]
[1758701437124,4.26,211.18,211.11,7.83]
[1758701437323,1.18422349,211.17,211.11,7.83]
[1758701437522,1.18422349,211.16,211.11,7.83]
[1758701437725,1.18422349,211.15,211.1,1.36908294]
[1758701437923,4.26,211.18,211.11,7.83]
[1758701438123,1.18422256,211.17,211.11,7.83]
[1758701438424,1.18422256,211.17,211.1,1.36908294]
[1758701438425,1.18422256,211.16,211.1,1.36908294]
[1758701438625,4.26,211.18,211.11,7.83]
[1758701438924,1.18422256,211.17,211.11,12.0911]
[1758701439119,1.18422256,211.16,211.11,4.2611]
[1758701439326,13.52858294,211.2,211.12,7.83]
[1758701439532,1.18420466,211.19,211.12,7.83]
[1758701439726,1.18420466,211.18,211.12,7.83]
[1758701439915,1.18420466,211.17,211.12,7.83]
[1758701440121,13.52858294,211.2,211.12,7.83]
[1758701440318,1.18420429,211.19,211.12,7.83]
[1758701440520,1.18420429,211.18,211.12,12.0909]
[1758701440724,1.18420429,211.17,211.13,7.83]
[1758701440926,7.9,211.2,211.13,12.0907]
[1758701441120,1.18420392,211.19,211.13,7.83]
[1758701441325,1.18420392,211.18,211.11,7.83]
[1758701441527,7.9,211.2,211.13,7.83]
[1758701441722,1.18405815,211.19,211.13,7.83]
[1758701441918,7.9,211.2,211.13,7.83]
[1758701442118,1.18405815,211.19,211.13,7.83]
[1758701442428,7.9,211.2,211.13,7.83]
[1758701442622,1.18409226,211.19,211.13,7.83]
[1758701442927,7.9,211.2,211.14,4.2605]
[1758701443122,1.18408327,211.19,211.14,4.2605]
[1758701443320,7.9,211.2,211.15,7.83]
[1758701443517,4.2591,211.22,211.15,7.83]
[1758701443718,1.18407397,211.21,211.15,7.83]
[1758701443924,1.18407397,211.2,211.15,7.83]
[1758701444126,4.2591,211.22,211.15,7.83]
[1758701444326,1.18407397,211.21,211.15,7.83]
[1758701444524,1.18407397,211.2,211.14,4.2605]
[1758701444722,12.1591,211.22,211.15,7.83]
[1758701444923,1.18407397,211.21,211.15,7.83]
[1758701445128,1.18407397,211.2,211.14,4.2605]
[1758701445327,12.1591,211.22,211.15,7.83]
[1758701445531,1.18407397,211.21,211.15,7.83]
[1758701445729,1.18407397,211.2,211.14,4.2605]
[1758701445929,12.1591,211.22,211.15,7.83]
[1758701446129,1.18407397,211.21,211.15,7.83]
[1758701446325,1.18407397,211.2,211.15,7.83]
[1758701446529,7.9,211.21,211.15,7.83]
[1758701446728,9.08407397,211.2,211.15,7.83]
[1758701446928,7.9,211.2,211.14,4.2605]
[1758701447431,7.9,211.2,211.15,7.83]
[1758701447632,7.9,211.2,211.14,4.2605]
[1758701448231,7.9,211.2,211.15,7.83]
[1758701448636,7.9,211.2,211.14,4.2605]
[1758701448930,7.9,211.2,211.15,7.83]
[1758701449231,7.9,211.2,211.14,4.2605]
[1758701449431,7.9,211.2,211.15,7.83]
[1758701450125,7.9,211.2,211.14,4.2605]
[1758701450327,7.9,211.2,211.11,3.93431438]
[1758701450328,7.9,211.2,211.13,7.83]
[1758701450526,1.1841528,211.19,211.13,7.83]
[1758701450731,9.26908294,211.2,211.13,7.83]
[1758701451327,1.18412671,211.19,211.13,7.83]
[1758701451529,9.26908294,211.2,211.13,7.83]
[1758701451728,4.2601,211.17,211.13,7.83]
[1758701451930,7.9,211.17,211.1,7.83]
[1758701452934,4.2604,211.16,211.1,7.83]
[1758701454646,7.94,211.14,211.09,7.63]
[1758701454843,7.94,211.14,211.08,3.93431438]
[1758701455148,7.94,211.14,211.09,7.63]
[1758701455649,7.94,211.14,211.08,3.93431438]
[1758701455848,7.94,211.14,211.09,7.63]
[1758701456147,4.2607,211.15,211.09,7.63]
[1758701456549,7.94,211.16,211.09,7.63]
[1758701457244,5.62918294,211.17,211.07,3.93431438]
[1758701457245,1.36908294,211.17,211.07,3.93431438]
[1758701457450,7.94,211.15,211.05,128.73339732]
[1758701457651,7.94,211.13,211.05,128.73339732]
[1758701458041,1.18438132,211.12,211.05,128.73339732]
[1758701458248,7.94,211.13,211.05,12.93339732]
[1758701458450,9.30908294,211.11,211.04,11.56431438]
[1758701458748,1.18438132,211.1,211.02,11.56431438]
[1758701459253,5.44598132,211.1,211.02,11.56431438]
[1758701459451,1.18438132,211.09,211.02,11.56431438]
[1758701460046,4.2616,211.1,211.02,11.56431438]
[1758701460645,13.38650996,211.09,211.02,7.63]
[1758701460849,1.18466118,211.08,211.02,7.63]
[1758701461151,12.2019,211.09,211.02,7.63]
[1758701461152,7.94,211.09,211.02,7.63]
[1758701462750,2.55376227,211.08,211.02,7.63]
[1758701462949,7.94,211.07,211.02,7.63]
[1758701463650,1.36908294,211.08,211.02,7.63]
[1758701463856,7.94,211.06,210.99,7.63]
[1758701464756,12.2025,211.06,210.99,7.63]
[1758701465256,1.36908294,211.05,210.99,7.63]
[1758701465459,7.94,211.04,210.96,206.78402421]
[1758701465653,7.94,211.04,210.96,214.41402421]
[1758701466154,7.94,211.04,210.96,98.59402421]
[1758701466752,12.2028,211.04,210.96,98.59402421]
[1758701467358,4.2631,211.03,210.96,7.63]
[1758701467661,7.94,211.02,210.96,7.63]
[1758701468454,1.36908294,211.02,210.96,7.63]
[1758701468657,7.94,211.01,210.94,115.82]
[1758701469051,4.2637,211.0,210.94,115.82]
[1758701469855,67.68538294,211.02,210.93,7.63]
[1758701470154,7.94,210.98,210.89,115.84]
[1758701470353,7.94,210.98,210.9,7.63]
[1758701470554,1.36908294,210.99,210.9,7.63]
[1758701470957,1.36908294,210.99,210.91,7.63]
[1758701474864,7.8,210.98,210.91,7.63]
[1758701480669,4.2639,210.99,210.92,7.73]
[1758701481474,12.0639,210.99,210.92,7.73]
[1758701491085,4.264,210.98,210.92,7.73]
[1758701492179,7.51,210.97,210.9,1.36908294]
[1758701492381,7.51,210.97,210.91,7.54]
[1758701494085,7.51,210.97,210.91,11.8052]
[1758701494589,7.51,210.97,210.91,4.2652]
[1758701494778,4.2638,210.99,210.92,7.54]
[1758701494980,7.51,211.05,210.92,7.54]
[1758701496291,4.2632,211.02,210.92,7.54]
[1758701496488,7.51,211.01,210.93,7.54]
[1758701496990,4.2636,211.0,210.93,11.8049]
[1758701497985,4.2636,211.0,210.94,7.54]
[1758701498589,7.51,211.01,210.94,7.54]
[1758701501689,11.7734,211.01,210.94,7.54]
[1758701503182,11.7734,211.01,210.94,11.47431438]
[1758701504292,11.7734,211.01,210.94,11.49173512]
[1758701505292,66.3102,211.04,210.94,11.49173512]
[1758701505595,10.83724522,211.03,210.92,3.95173512]
[1758701505792,2.14227599,210.99,210.9,7.54]
[1758701505992,8.69496923,210.98,210.9,7.54]
[1758701506202,7.51,210.95,210.87,3.95173512]
[1758701506397,7.51,210.93,210.85,3.95173512]
[1758701506595,7.51,210.93,210.85,7.54]
[1758701508598,7.51,211.0,210.86,2.14227599]
[1758701508898,7.51,210.98,210.87,7.54]
[1758701509197,1.18550687,210.97,210.87,7.54]
[1758701509501,8.69550687,210.96,210.87,11.806]
[1758701509794,1.18550687,210.95,210.87,7.54]
[1758701509989,7.51,210.99,210.91,7.54]
[1758701510191,1.18522731,210.98,210.91,7.54]
[1758701510391,7.51,210.99,210.91,7.54]
[1758701510592,1.18522695,210.98,210.91,7.54]
[1758701510799,7.51,210.99,210.91,7.54]
[1758701510996,1.18522678,210.98,210.91,7.54]
[1758701511195,7.51,210.99,210.91,7.54]
[1758701511396,1.18522678,210.98,210.91,7.54]
[1758701511591,7.51,210.99,210.91,7.54]
[1758701511794,1.18522678,210.98,210.91,7.54]
[1758701511997,7.51,210.99,210.91,7.54]
[1758701512495,7.51,211.03,210.93,7.54]
[1758701512695,1.18510359,211.02,210.93,7.54]
[1758701512993,7.51,211.0,210.93,7.54]
[1758701513199,1.18518162,210.99,210.93,7.54]
[1758701513387,7.51,211.0,210.93,7.54]
[1758701513592,1.18518234,210.99,210.93,7.54]
[1758701513793,1.18518234,210.99,210.9,6.09401111]
[1758701513794,66.3188,211.01,210.9,3.95173512]
[1758701513986,7.62,210.99,210.9,7.46]
[1758701514495,1.1852602,210.98,210.9,7.46]
[1758701514697,7.62,210.99,210.9,7.46]
[1758701514894,11.8842,210.97,210.9,7.46]
[1758701516197,4.2645,210.96,210.9,7.46]
[1758701517002,4.2647,210.95,210.9,7.46]
[1758701517300,7.62,210.94,210.9,7.46]
[1758701518205,7.62,210.92,210.88,7.46]
[1758701518797,11.8853,210.91,210.85,3.95173512]
[1758701519000,7.62,210.91,210.84,7.46]
[1758701519598,7.62,210.95,210.84,7.46]
[1758701519806,1.18557431,210.94,210.84,7.46]
[1758701520106,1.18557431,210.93,210.84,7.46]
[1758701520306,4.2651,210.93,210.84,7.46]
[1758701520607,7.62,210.95,210.85,7.46]
[1758701520904,1.18550464,210.94,210.85,7.46]
[1758701521205,7.62,210.95,210.85,7.46]
[1758701521505,1.18550481,210.94,210.85,7.46]
[1758701521706,11.8847,210.95,210.85,7.46]
[1758701522002,1.185505,210.94,210.85,7.46]
[1758701522200,11.8847,210.95,210.85,7.46]
[1758701522392,1.18550518,210.94,210.85,7.46]
[1758701522595,11.8847,210.95,210.85,7.46]
[1758701522793,1.18550518,210.94,210.85,7.46]
[1758701523002,11.8847,210.95,210.85,7.46]
[1758701523202,1.18550518,210.94,210.85,7.46]
[1758701523402,11.8847,210.95,210.85,7.46]
[1758701523605,1.18550518,210.94,210.85,7.46]
[1758701523902,11.8847,210.95,210.85,7.46]
[1758701524096,1.18550518,210.94,210.85,7.46]
[1758701524303,11.8847,210.95,210.85,7.46]
[1758701524494,11.8847,210.95,210.86,7.46]
[1758701525401,2.14227599,211.0,210.86,7.46]
[1758701525703,8.80540971,210.99,210.86,3.94881605]
[1758701525903,1.18540971,210.98,210.87,7.46]
[1758701526104,7.62,210.99,210.87,7.46]
[1758701526408,11.8837,210.99,210.9,7.46]
[1758701527504,7.62,210.99,210.9,11.7254]
[1758701527710,7.62,210.99,210.91,7.46]
[1758701528511,7.62,210.99,210.91,11.7251]
[1758701528808,7.62,210.99,210.92,7.46]
[1758701531908,4.2629,211.03,210.93,7.46]
[1758701532113,8.80516832,211.02,210.93,7.46]
[1758701532314,7.62,211.02,210.93,7.46]
[1758701532608,7.62,211.0,210.93,7.46]
[1758701540317,7.82,211.02,210.9,7.67]
[1758701540512,7.82,211.0,210.9,7.67]
[1758701541417,7.82,211.0,210.92,7.67]
[1758701542213,12.0837,211.0,210.92,7.67]
[1758701543218,7.82,211.0,210.92,7.67]
[1758701543514,7.47,211.04,210.92,7.67]
[1758701543712,1.18510375,211.03,210.92,7.67]
[1758701543913,8.65510375,211.02,210.94,7.3]
[1758701544115,7.47,211.02,210.94,7.3]
[1758701544721,7.47,211.05,210.94,7.3]
[1758701544918,1.18500741,211.04,210.95,7.3]
[1758701545119,7.47,211.05,210.95,7.3]
[1758701545322,7.47,211.05,210.99,7.3]
[1758701546023,7.47,211.05,210.99,11.5636]
[1758701548325,7.47,211.05,210.99,7.3]
[1758701548530,7.47,211.05,211.0,4.2633]
[1758701548832,7.47,211.05,211.01,7.3]
[1758701549123,7.47,211.05,211.0,4.2633]
[1758701549330,7.47,211.05,211.01,7.3]
[1758701549533,7.47,211.09,211.01,7.3]
[1758701549829,1.18485122,211.08,211.01,7.3]
[1758701550033,1.18485122,211.07,211.01,7.3]
[1758701550328,7.47,211.09,211.01,7.3]
[1758701550531,1.1848167,211.08,211.01,7.3]
[1758701550732,7.47,211.09,211.01,7.3]
[1758701550925,1.18481113,211.08,211.01,7.3]
[1758701551124,7.47,211.09,211.01,7.3]
[1758701551427,1.1848115,211.08,211.01,7.3]
[1758701551731,7.47,211.09,211.01,11.5631]
[1758701552326,7.47,211.09,211.01,7.3]
[1758701552527,7.47,211.09,211.03,1.36941975]
[1758701552927,7.47,211.09,211.04,7.3]
[1758701553135,7.47,211.09,211.03,1.36941975]
[1758701553437,50.0,211.11,211.03,8.66941975]
[1758701553438,7.47,211.1,211.03,8.66941975]
[1758701554835,7.47,211.1,211.03,12.93231975]
[1758701556937,7.47,211.1,211.03,5.63231975]
[1758701557135,7.47,211.1,211.04,7.3]
[1758701565145,50.0,211.11,211.04,8.66941975]
[1758701565643,50.0,211.11,211.08,7.3]
[1758701565850,50.0,211.11,211.07,1.36941975]
[1758701566348,50.0,211.11,211.1,11.5615]
[1758701568448,50.0,211.11,211.1,7.3]
[1758701569251,50.0,211.11,211.08,4.2618]
[1758701569549,50.0,211.11,211.09,7.3]
[1758701570051,7.47,211.1,211.02,66.3142]
[1758701570244,50.0,211.11,211.07,7.3]
[1758701570444,57.47,211.11,211.07,7.3]
[1758701571754,57.47,211.11,211.07,11.5619]
[1758701573757,50.0,211.11,211.07,11.5619]
[1758701573960,7.85,211.1,211.07,11.5619]
[1758701574558,50.0,211.11,211.06,1.36941975]
[1758701574961,7.85,211.09,211.06,1.36941975]
[1758701575659,50.0,211.11,211.06,1.36941975]
[1758701575660,7.85,211.1,211.06,1.36941975]
[1758701575957,7.85,211.1,211.03,117.16941975]
[1758701576861,7.85,211.1,211.03,121.43221975]
[1758701577162,7.85,211.1,211.05,1.36941975]
[1758701577363,7.85,211.1,211.06,7.64]
[1758701578965,7.85,211.1,211.06,11.9021]
[1758701579964,7.85,211.1,211.06,4.2621]
[1758701580764,50.0,211.11,211.06,4.2621]
[1758701580965,7.85,211.1,211.06,4.2621]
[1758701581157,50.0,211.11,211.06,4.2621]
[1758701581363,7.85,211.1,211.06,4.2621]
[1758701581562,50.0,211.11,211.06,4.2621]
[1758701582070,7.85,211.1,211.05,1.36941975]
[1758701582265,7.85,211.09,211.05,9.00941975]
[1758701582467,7.85,211.1,211.04,4.2626]
[1758701585773,1.36941975,211.1,211.02,123.44]
[1758701586263,1.18471182,211.09,211.02,123.44]
[1758701586465,7.85,211.08,211.02,123.44]
[1758701588466,7.85,211.06,210.99,7.64]
[1758701588663,7.85,211.09,210.99,123.44]
[1758701588970,7.85,211.05,210.99,123.44]
[1758701590871,7.85,211.05,210.99,127.7035]
[1758701591072,7.85,211.05,210.99,123.44]
[1758701591372,7.85,211.09,211.03,7.64]
[1758701591769,50.0,211.11,211.05,7.64]
[1758701592073,50.0,211.11,211.09,7.64]
[1758701592472,50.0,211.11,211.08,1.36941975]
[1758701592675,50.0,211.11,211.09,7.64]
[1758701593270,50.0,211.11,211.08,5.63121975]
[1758701593666,50.0,211.11,211.09,7.64]
[1758701594173,50.0,211.11,211.08,5.63121975]
[1758701594369,50.0,211.11,211.09,7.64]
[1758701595378,50.0,211.11,211.1,7.64]
[1758701596375,57.75,211.11,211.04,3.94629382]
[1758701596579,57.75,211.11,211.03,7.45]
[1758701596580,57.75,211.11,211.05,36.86]
[1758701598478,57.75,211.11,211.05,44.31]
[1758701598680,57.75,211.11,211.05,45.67941975]
[1758701600976,50.0,211.11,211.07,7.45]
[1758701601172,50.0,211.11,211.06,1.36941975]
[1758701601375,50.0,211.11,211.07,7.45]
[1758701601582,50.0,211.11,211.06,1.36941975]
[1758701601782,50.0,211.11,211.07,11.7119]
[1758701601983,50.0,211.11,211.08,7.45]
[1758701602578,57.75,211.11,211.08,7.45]
[1758701602980,57.75,211.11,211.07,11.7119]
[1758701603283,57.75,211.11,211.08,7.45]
[1758701604387,7.76,211.1,211.06,7.98]
[1758701604793,50.0,211.11,211.06,7.98]
[1758701605392,7.76,211.1,211.06,7.98]
[1758701605590,50.0,211.11,211.05,41.1224]
[1758701606188,7.76,211.1,211.05,41.1224]
[1758701606591,50.0,211.11,211.03,8.20909382]
[1758701606787,7.76,211.1,211.03,120.0428]
[1758701607294,7.76,211.1,211.03,128.0228]
[1758701610801,7.76,211.1,211.04,1.36941975]
[1758701612702,7.76,211.1,211.03,128.0228]
[1758701617508,7.76,211.1,211.03,7.98]
[1758701617703,7.76,211.1,211.04,115.76]
[1758701619308,12.0216,211.1,211.04,115.76]
[1758701619809,7.76,211.1,211.04,120.0225]
[1758701623713,7.76,211.1,211.04,115.76]
[1758701624810,12.0217,211.1,211.04,115.76]
[1758701625006,7.76,211.1,211.03,115.76]
[1758701625206,7.76,211.1,211.04,7.98]
[1758701625913,12.0216,211.1,211.04,7.98]
[1758701626208,50.0,211.11,211.04,7.98]
[1758701627514,50.0,211.11,211.05,4.2625]
[1758701627708,50.0,211.11,211.06,7.98]
[1758701628311,57.76,211.11,211.05,4.2625]
[1758701628508,57.76,211.11,211.07,7.98]
[1758701628509,50.0,211.11,211.07,7.98]
[1758701628812,50.0,211.11,211.09,7.98]
[1758701629313,50.0,211.11,211.08,115.76]
[1758701629921,50.0,211.11,211.09,7.98]
[1758701630115,50.0,211.11,211.08,115.76]
[1758701630314,50.0,211.11,211.09,7.98]
[1758701630818,50.0,211.11,211.08,115.76]
[1758701631116,51.0,211.11,211.09,7.98]
[1758701631618,51.0,211.11,211.08,115.76]
[1758701631814,51.0,211.11,211.09,7.98]
[1758701632014,51.0,211.11,211.08,115.76]
[1758701632309,51.0,211.11,211.09,7.98]
[1758701632511,51.0,211.11,211.08,115.76]
[1758701632717,51.0,211.11,211.09,7.98]
[1758701632916,51.0,211.11,211.08,115.76]
[1758701633110,51.0,211.11,211.09,7.98]
[1758701633421,51.0,211.11,211.09,7.34]
[1758701633918,51.0,211.11,211.08,115.76]
[1758701634318,51.0,211.11,211.09,7.34]
[1758701636918,51.0,211.11,211.08,115.76]
[1758701637310,51.0,211.11,211.09,7.34]
[1758701640025,7.68,211.1,211.05,3.94629382]
[1758701640219,7.68,211.1,211.06,123.08]
[1758701640924,51.0,211.11,211.06,123.08]
[1758701641224,7.68,211.1,211.06,123.08]
[1758701641620,51.0,211.11,211.06,123.08]
[1758701641814,7.68,211.1,211.06,123.08]
[1758701642016,51.0,211.11,211.06,123.08]
[1758701642729,51.0,211.11,211.07,115.72]
[1758701643026,7.68,211.1,211.07,115.72]
[1758701643420,51.0,211.11,211.07,115.72]
[1758701643615,7.68,211.1,211.08,7.34]
[1758701644326,7.68,211.1,211.07,115.72]
[1758701645225,51.0,211.11,211.07,115.72]
[1758701645428,7.68,211.1,211.07,115.72]
[1758701645824,51.0,211.11,211.07,115.72]
[1758701646023,7.68,211.1,211.07,115.72]
[1758701646829,7.68,211.1,211.07,123.06]
[1758701647031,7.68,211.1,211.04,3.94629382]
[1758701647228,51.0,211.11,211.05,71.98]
[1758701648532,51.0,211.11,211.06,7.34]
[1758701648723,58.68,211.11,211.06,7.34]
[1758701649129,58.68,211.11,211.05,76.2424]
[1758701649429,58.68,211.11,211.06,7.34]
[1758701649634,58.68,211.11,211.05,83.5824]
[1758701652140,51.0,211.11,211.05,71.98]
[1758701652331,51.0,211.11,211.05,109.9]
[1758701652636,7.68,211.1,211.05,109.9]
[1758701653037,7.68,211.1,211.05,117.24]
[1758701653236,51.0,211.11,211.05,117.24]
[1758701653438,7.68,211.1,211.05,117.24]
[1758701653635,51.0,211.11,211.05,117.24]
[1758701653937,51.0,211.11,211.05,109.9]
[1758701653938,7.68,211.1,211.05,109.9]
[1758701654343,51.0,211.11,211.05,109.9]
[1758701654532,7.68,211.1,211.05,109.9]
[1758701654837,4.2618,211.09,211.05,109.9]
[1758701655037,7.64,211.08,211.05,109.9]
[1758701655231,7.64,211.08,211.02,115.72]
[1758701655430,7.64,211.08,211.02,123.52]
[1758701655631,7.64,211.08,211.02,127.46629382]
[1758701656335,7.64,211.08,211.02,123.52]
[1758701656542,62.9013,211.11,211.04,7.8]
[1758701656737,58.64,211.11,211.04,7.8]
[1758701661834,62.9014,211.11,211.04,7.8]
[1758701663045,62.9014,211.11,211.02,3.94629382]
[1758701663238,4.2618,211.09,211.03,41.8]
[1758701663637,7.69,211.08,211.03,41.8]
[1758701664139,4.2618,211.09,211.03,49.34]
[1758701665541,7.69,211.1,211.03,53.6029]
[1758701666345,7.69,211.1,211.04,11.8026]
[1758701667844,7.69,211.1,211.04,15.74889382]
[1758701668139,51.0,211.11,211.05,7.54]
[1758701668354,51.0,211.11,211.07,7.54]
[1758701668659,51.0,211.11,211.09,7.54]
[1758701668952,58.69,211.11,211.08,123.24]
[1758701669148,51.0,211.11,211.08,115.7]
[1758701669349,51.0,211.11,211.09,7.54]
[1758701669647,51.0,211.11,211.08,115.7]
[1758701670251,51.0,211.11,211.09,7.54]
[1758701672651,51.0,211.11,211.08,119.9618]
[1758701672858,51.0,211.11,211.09,7.54]
[1758701673061,51.0,211.11,211.08,123.90205692]
[1758701673259,51.0,211.11,211.09,7.54]
[1758701673756,51.0,211.11,211.08,123.90205692]
[1758701674053,51.0,211.11,211.1,15.74175692]
[1758701674246,51.0,211.11,211.1,11.8015]
[1758701675253,51.0,211.11,211.1,127.9815]
[1758701675459,51.0,211.11,211.1,131.91686392]
[1758701675654,51.0,211.11,211.1,127.9815]
[1758701676260,51.0,211.11,211.1,131.91513496]
[1758701677261,51.0,211.11,211.1,131.43513496]
[1758701678663,51.0,211.11,211.1,127.5015]
[1758701678865,51.0,211.11,211.1,131.43513496]
[1758701680160,43.8852,211.11,211.1,127.5015]
[1758701680958,43.8852,211.11,211.1,131.427581]